[Event "Ciutat Barcelona CAT-ARG 2018"]
[Site "Barcelona"]
[Date "2018.10.14"]
[Round "12"]
[White "Pichot, Alan"]
[Black "Alonso Rosell, Alvar"]
[Result "0-1"]
[ECO "C72"]
[WhiteElo "2556"]
[BlackElo "2526"]
[Annotator "ChessBase"]
[PlyCount "71"]
[EventDate "2018.10.08"]
[EventCountry "ESP"]
[SourceTitle "playchess.com"]
[Source "ChessBase"]
[SourceQuality "1"]
[TimeControl "900+5"]

1. e4 {[%emt 0:00:00]} e5 {[%emt 0:00:00]} 2. Nf3 {[%emt 0:00:00]} Nc6 {[%emt 0:00:00]} 3. Bb5 {[%emt 0:00:01]} a6 {[%emt 0:00:00]} 4. Ba4 {[%emt 0:00:01]} d6 {[%emt 0:00:00]} 5. O-O {[%emt 0:00:05]} Bd7 {[%emt 0:00:02]} 6. c4 {[%emt 0:00:11]} Nf6 {[%emt 0:00:08]} 7. Nc3 {[%emt 0:00:01]} Be7 {[%emt 0:00:01]} 8. Bxc6 {[%emt 0:00:52]} bxc6 {[%emt 0:01:08]} 9. d4 {[%emt 0:00:13]} exd4 {[%emt 0:00:01]} 10. Nxd4 {[%emt 0:00:02]} O-O {[%emt 0:00:04]} 11. Qf3 {[%emt 0:01:11]} Re8 {[%emt 0:09:19]} 12. b3 c5 13. Nf5 {[%emt 0:00:31]} Bxf5 {[%emt 0:00:08]} 14. Qxf5 {[%emt 0:00:39]} Nd7 {[%emt 0:00:05]} 15. Nd5 {[%emt 0:00:08]} Bf6 {[%emt 0:00:03]} 16. Rb1 Bd4 17. Bg5 {[%emt 0:00:59]} f6 {[%emt 0:01:42]} 18. Bd2 {[%emt 0:00:14]} Re5 {[%emt 0:00:49]} 19. Qf3 {[%emt 0:00:09]} c6 {[%emt 0:00:05]} 20. Nf4 {[%emt 0:01:00]} Qe7 {[%emt 0:00:26]} 21. Ne2 {[%emt 0:01:14]} Re8 {[%emt 0:00:48]} 22. Ng3 {[%emt 0:00:15]} g6 {[%emt 0:00:06]} 23. Bc3 Re6 {[%emt 0:00:52]} 24. Qd3 {[%emt 0:01:37]} Ne5 {[%emt 0:00:52]} 25. Qd2 {[%emt 0:00:07]} Bxc3 {[%emt 0:00:11]} 26. Qxc3 {[%emt 0:00:01]} Nf7 27. f4 {[%emt 0:00:32]} Nh6 {[%emt 0:00:05]} 28. Qd3 {[%emt 0:01:58]} f5 {[%emt 0:00:08]} 29. exf5 {[%emt 0:03:31]} Re3 {[%emt 0:00:01]} 30. Qc2 {[%emt 0:00:01]} Qh4 {[%emt 0:00:01]} 31. fxg6 {[%emt 0:00:01]} Ng4 32. gxh7+ {[%emt 0:00:01]} Kh8 33. Qb2+ R8e5 {[%emt 0:00:04]} 34. h3 {[%emt 0:00:07]} Qxg3 {[%emt 0:00:03]} 35. hxg4 {[%emt 0:00:01]} Re2 {[%emt 0:00:01]} 36. fxe5 0-1

[Event "Ciutat Barcelona CAT-ARG 2018"]
[Site "Barcelona"]
[Date "2018.10.14"]
[Round "12"]
[White "Diaz Camallonga, Carles"]
[Black "Perez Ponsa, Federico"]
[Result "1/2-1/2"]
[ECO "B51"]
[WhiteElo "2444"]
[BlackElo "2554"]
[Annotator "ChessBase"]
[PlyCount "190"]
[EventDate "2018.10.08"]
[EventCountry "ESP"]
[SourceTitle "playchess.com"]
[Source "ChessBase"]
[SourceQuality "1"]
[TimeControl "900+5"]

1. e4 {[%emt 0:00:00]} c5 {[%emt 0:00:00]} 2. Nf3 {[%emt 0:00:00]} d6 {[%emt 0:00:00]} 3. Bb5+ {[%emt 0:00:00]} Nd7 {[%emt 0:00:00]} 4. d4 {[%emt 0:00:01]} cxd4 {[%emt 0:00:02]} 5. Qxd4 {[%emt 0:00:02]} a6 {[%emt 0:00:01]} 6. Bxd7+ {[%emt 0:00:02]} Bxd7 {[%emt 0:00:02]} 7. c4 {[%emt 0:00:01]} Nf6 {[%emt 0:00:03]} 8. Bg5 {[%emt 0:00:01]} e6 9. Nc3 {[%emt 0:00:10]} h6 {[%emt 0:00:33]} 10. Bh4 e5 {[%emt 0:00:31]} 11. Qd3 {[%emt 0:00:13]} g5 {[%emt 0:00:02]} 12. Bg3 {[%emt 0:00:11]} Rc8 {[%emt 0:00:23]} 13. O-O {[%emt 0:00:01]} Qc7 {[%emt 0:00:19]} 14. Nd2 {[%emt 0:00:21]} Be7 {[%emt 0:00:40]} 15. Rfd1 Be6 {[%emt 0:00:20]} 16. Nd5 {[%emt 0:00:47]} Nxd5 {[%emt 0:00:07]} 17. cxd5 {[%emt 0:00:04]} Bd7 {[%emt 0:00:08]} 18. Nf1 {[%emt 0:00:57]} h5 {[%emt 0:00:49]} 19. h3 Qc2 {[%emt 0:01:11]} 20. Rd2 {[%emt 0:01:33]} Qxd3 {[%emt 0:00:28]} 21. Rxd3 f5 {[%emt 0:00:21]} 22. exf5 {[%emt 0:00:32]} Bxf5 {[%emt 0:00:02]} 23. Rdd1 {[%emt 0:00:01]} Kd7 {[%emt 0:00:25]} 24. Ne3 {[%emt 0:00:03]} Bg6 {[%emt 0:00:04]} 25. Rac1 Rxc1 {[%emt 0:00:20]} 26. Rxc1 {[%emt 0:00:04]} Bd8 27. f3 {[%emt 0:01:05]} Bb6 {[%emt 0:00:08]} 28. Bf2 {[%emt 0:00:01]} Bf7 {[%emt 0:00:20]} 29. Nf5 {[%emt 0:00:48]} Bd8 {[%emt 0:01:38]} 30. Ne3 {[%emt 0:00:12]} Re8 {[%emt 0:00:42]} 31. Rc4 b5 32. Rc6 {[%emt 0:02:50]} Bxd5 {[%emt 0:00:19]} 33. Rxa6 {[%emt 0:00:09]} Bb7 {[%emt 0:00:11]} 34. Ra7 {[%emt 0:00:27]} Kc8 35. Nf5 {[%emt 0:00:13]} Bc7 {[%emt 0:00:18]} 36. Ra3 {[%emt 0:00:04]} Rf8 {[%emt 0:00:41]} 37. Ng3 {[%emt 0:00:25]} g4 {[%emt 0:00:39]} 38. fxg4 {[%emt 0:00:34]} hxg4 {[%emt 0:00:02]} 39. hxg4 {[%emt 0:00:03]} Rg8 40. Rb3 Bc6 {[%emt 0:01:02]} 41. Nf5 {[%emt 0:00:51]} Rxg4 {[%emt 0:00:04]} 42. Ne7+ {[%emt 0:00:02]} Kd7 {[%emt 0:00:01]} 43. Nxc6 {[%emt 0:00:01]} Kxc6 {[%emt 0:00:01]} 44. Rc3+ {[%emt 0:00:02]} Kd7 {[%emt 0:00:20]} 45. b3 {[%emt 0:00:18]} Bd8 46. Rg3 {[%emt 0:00:35]} Re4 {[%emt 0:00:24]} 47. Kf1 {[%emt 0:00:29]} b4 {[%emt 0:00:32]} 48. Rg7+ {[%emt 0:00:14]} Ke6 {[%emt 0:00:27]} 49. g3 {[%emt 0:01:42]} Be7 {[%emt 0:00:06]} 50. Rg8 {[%emt 0:00:54]} d5 {[%emt 0:00:33]} 51. Rc8 d4 {[%emt 0:00:01]} 52. Rc4 {[%emt 0:00:15]} Kd5 {[%emt 0:00:10]} 53. Rc2 {[%emt 0:00:30]} Rg4 {[%emt 0:00:31]} 54. Ke2 {[%emt 0:00:54]} e4 55. Rc7 {[%emt 0:00:05]} Bd6 {[%emt 0:00:50]} 56. Rd7 {[%emt 0:00:14]} Ke6 57. Rd8 {[%emt 0:00:09]} Ke7 {[%emt 0:00:48]} 58. Rc8 e3 {[%emt 0:00:46]} 59. Be1 {[%emt 0:00:12]} Bxg3 {[%emt 0:00:12]} 60. Bxb4+ Kd7 61. Rc4 {[%emt 0:00:11]} Be5 {[%emt 0:00:11]} 62. Kd3 {[%emt 0:00:22]} Ke6 63. Rc8 Kd7 {[%emt 0:01:05]} 64. Rc5 {[%emt 0:00:10]} Ke6 {[%emt 0:00:05]} 65. Rc8 Rg1 66. Re8+ {[%emt 0:00:04]} Kf6 {[%emt 0:00:23]} 67. Rf8+ Ke6 {[%emt 0:00:03]} 68. Re8+ {[%emt 0:00:04]} Kf6 {[%emt 0:00:00]} 69. Rf8+ {[%emt 0:00:01]} Kg7 70. Rf5 Bf6 {[%emt 0:00:03]} 71. Ra5 {[%emt 0:00:19]} Rd1+ {[%emt 0:00:09]} 72. Ke2 Rb1 {[%emt 0:00:12]} 73. Kd3 {[%emt 0:00:05]} Kf7 {[%emt 0:00:09]} 74. Ra6 {[%emt 0:00:12]} Rd1+ 75. Ke2 {[%emt 0:00:01]} Rb1 {[%emt 0:00:10]} 76. Kd3 {[%emt 0:00:01]} Be5 {[%emt 0:00:02]} 77. Ke4 {[%emt 0:00:07]} Bg7 {[%emt 0:00:08]} 78. Kd3 Bf6 {[%emt 0:00:02]} 79. Ra4 {[%emt 0:00:10]} Rb2 {[%emt 0:00:05]} 80. Ra6 {[%emt 0:00:02]} Bh4 {[%emt 0:00:07]} 81. Kxd4 {[%emt 0:00:23]} e2 {[%emt 0:00:01]} 82. Kd3 {[%emt 0:00:02]} e1=Q {[%emt 0:00:05]} 83. Bxe1 {[%emt 0:00:02]} Bxe1 84. Ra4 Bg3 {[%emt 0:00:12]} 85. Ke3 {[%emt 0:00:02]} Bd6 86. Kd3 {[%emt 0:00:02]} Ke6 {[%emt 0:00:05]} 87. Re4+ {[%emt 0:00:05]} Kd5 {[%emt 0:00:04]} 88. Rd4+ {[%emt 0:00:03]} Kc6 {[%emt 0:00:01]} 89. Ra4 {[%emt 0:00:02]} Rh2 {[%emt 0:00:03]} 90. Kc3 {[%emt 0:00:04]} Bc5 {[%emt 0:00:03]} 91. Kc4 Rc2+ {[%emt 0:00:07]} 92. Kd3 {[%emt 0:00:05]} Rc1 {[%emt 0:00:02]} 93. Rc4 {[%emt 0:00:05]} Rd1+ {[%emt 0:00:01]} 94. Kc2 {[%emt 0:00:01]} Rd4 {[%emt 0:00:26]} 95. Rxd4 {[%emt 0:00:02]} Bxd4 {[%emt 0:00:01]} 1/2-1/2

[Event "Ciutat Barcelona CAT-ARG 2018"]
[Site "Barcelona"]
[Date "2018.10.14"]
[Round "13"]
[White "Pichot, Alan"]
[Black "Diaz Camallonga, Carles"]
[Result "0-1"]
[ECO "C18"]
[WhiteElo "2556"]
[BlackElo "2444"]
[Annotator "ChessBase"]
[PlyCount "126"]
[EventDate "2018.10.08"]
[EventCountry "ESP"]
[SourceTitle "playchess.com"]
[Source "ChessBase"]
[SourceQuality "1"]
[TimeControl "900+5"]

1. e4 {[%emt 0:00:00]} e6 {[%emt 0:00:00]} 2. d4 {[%emt 0:00:00]} d5 {[%emt 0:00:00]} 3. Nc3 {[%emt 0:00:00]} Bb4 {[%emt 0:00:00]} 4. e5 {[%emt 0:00:00]} c5 {[%emt 0:00:01]} 5. a3 {[%emt 0:00:01]} Bxc3+ {[%emt 0:00:01]} 6. bxc3 {[%emt 0:00:01]} Qa5 {[%emt 0:00:04]} 7. Bd2 {[%emt 0:00:02]} Qa4 {[%emt 0:00:01]} 8. Qb1 {[%emt 0:00:40]} c4 {[%emt 0:00:01]} 9. Ne2 {[%emt 0:00:03]} Nc6 {[%emt 0:00:02]} 10. Nf4 {[%emt 0:00:05]} Bd7 {[%emt 0:00:01]} 11. h4 {[%emt 0:00:13]} O-O-O {[%emt 0:00:09]} 12. g3 {[%emt 0:00:16]} b6 {[%emt 0:01:05]} 13. Bh3 {[%emt 0:00:03]} Re8 {[%emt 0:00:05]} 14. O-O {[%emt 0:00:37]} f6 {[%emt 0:00:15]} 15. Re1 {[%emt 0:00:16]} fxe5 {[%emt 0:00:46]} 16. dxe5 {[%emt 0:00:02]} Re7 {[%emt 0:00:57]} 17. Qd1 Kb8 {[%emt 0:03:53]} 18. Rb1 {[%emt 0:05:38]} Ka8 {[%emt 0:00:21]} 19. Ne2 {[%emt 0:01:17]} Rf7 {[%emt 0:00:35]} 20. Nf4 {[%emt 0:00:41]} Re7 {[%emt 0:00:02]} 21. Bg2 {[%emt 0:00:01]} Re8 {[%emt 0:00:20]} 22. Nxd5 {[%emt 0:00:41]} exd5 {[%emt 0:00:11]} 23. Bxd5 {[%emt 0:00:02]} Nge7 {[%emt 0:00:19]} 24. Bg2 {[%emt 0:00:30]} Be6 {[%emt 0:00:07]} 25. Bg5 {[%emt 0:00:07]} Rd8 {[%emt 0:00:06]} 26. Qe2 {[%emt 0:00:59]} Bd5 {[%emt 0:00:18]} 27. Bxd5 {[%emt 0:01:36]} Rxd5 {[%emt 0:00:22]} 28. Rbd1 {[%emt 0:01:36]} Qb5 {[%emt 0:01:00]} 29. Rxd5 {[%emt 0:00:28]} Nxd5 {[%emt 0:00:27]} 30. e6 {[%emt 0:00:18]} h6 {[%emt 0:00:09]} 31. Bd2 {[%emt 0:00:13]} Nde7 {[%emt 0:00:06]} 32. Qg4 {[%emt 0:00:14]} Rg8 {[%emt 0:00:13]} 33. Bf4 g5 {[%emt 0:00:38]} 34. Bd6 {[%emt 0:00:38]} Qf5 {[%emt 0:01:27]} 35. Qxc4 Qd5 {[%emt 0:00:32]} 36. Qxd5 {[%emt 0:00:20]} Nxd5 {[%emt 0:00:01]} 37. c4 {[%emt 0:00:01]} Nde7 {[%emt 0:00:04]} 38. hxg5 {[%emt 0:00:20]} hxg5 {[%emt 0:00:01]} 39. Kg2 Nf5 {[%emt 0:00:08]} 40. Be5 {[%emt 0:00:13]} Re8 {[%emt 0:00:08]} 41. Bf6 {[%emt 0:00:01]} g4 42. Bg5 {[%emt 0:00:08]} Nfd4 {[%emt 0:00:23]} 43. Re4 {[%emt 0:00:07]} Rxe6 {[%emt 0:00:11]} 44. Rxg4 {[%emt 0:00:02]} Nxc2 {[%emt 0:00:03]} 45. Bf4 Nxa3 {[%emt 0:00:06]} 46. Rg8+ {[%emt 0:00:14]} Kb7 {[%emt 0:00:01]} 47. g4 {[%emt 0:00:02]} Nxc4 {[%emt 0:00:02]} 48. g5 {[%emt 0:00:01]} N4e5 {[%emt 0:00:00]} 49. Rg7+ {[%emt 0:00:02]} Ka6 {[%emt 0:00:04]} 50. Kg3 {[%emt 0:00:13]} Ng6 {[%emt 0:00:02]} 51. Be3 {[%emt 0:00:03]} Nce7 {[%emt 0:00:01]} 52. Rf7 {[%emt 0:00:03]} Kb5 {[%emt 0:00:05]} 53. Bd4 {[%emt 0:00:05]} Kc4 {[%emt 0:00:02]} 54. Bf6 {[%emt 0:00:03]} a5 {[%emt 0:00:05]} 55. f4 {[%emt 0:00:11]} Kd5 {[%emt 0:00:18]} 56. Kg4 {[%emt 0:00:01]} Ke4 {[%emt 0:00:05]} 57. Bxe7 {[%emt 0:00:02]} Nxe7 {[%emt 0:00:16]} 58. f5 {[%emt 0:00:00]} Re5 59. f6 {[%emt 0:00:06]} Nd5 {[%emt 0:00:13]} 60. g6 {[%emt 0:00:06]} Ne3+ {[%emt 0:00:06]} 61. Kh4 Kf3 {[%emt 0:00:30]} 62. Rh7 {[%emt 0:00:17]} Ng2+ {[%emt 0:00:11]} 63. Kh3 {[%emt 0:00:01]} Nf4+ {[%emt 0:00:01]} 0-1

[Event "Ciutat Barcelona CAT-ARG 2018"]
[Site "Barcelona"]
[Date "2018.10.14"]
[Round "13"]
[White "Perez Ponsa, Federico"]
[Black "Lopez Martinez, Josep Manuel"]
[Result "1-0"]
[ECO "C48"]
[WhiteElo "2554"]
[BlackElo "2581"]
[Annotator "ChessBase"]
[PlyCount "29"]
[EventDate "2018.10.08"]
[EventCountry "ESP"]
[SourceTitle "playchess.com"]
[Source "ChessBase"]
[SourceQuality "1"]
[TimeControl "900+5"]

1. e4 {[%emt 0:00:00]} e5 {[%emt 0:00:00]} 2. Nf3 {[%emt 0:00:00]} Nc6 {[%emt 0:00:00]} 3. Nc3 {[%emt 0:00:07]} Nf6 {[%emt 0:00:01]} 4. Bb5 {[%emt 0:00:05]} Bc5 {[%emt 0:00:22]} 5. O-O d6 6. d4 {[%emt 0:00:16]} exd4 {[%emt 0:00:47]} 7. Nxd4 {[%emt 0:00:02]} Bd7 {[%emt 0:00:05]} 8. Nf5 {[%emt 0:00:36]} O-O {[%emt 0:03:44]} 9. Bg5 Ne5 10. Bxd7 {[%emt 0:06:18]} Nexd7 {[%emt 0:00:08]} 11. Nd5 h6 12. Nde7+ {[%emt 0:03:12]} Kh7 {[%emt 0:04:36]} 13. Qc1 {[%emt 0:00:15]} Re8 14. Bxh6 {[%emt 0:00:21]} Rxe7 {[%emt 0:01:23]} 15. Bxg7 1-0

[Event "Ciutat Barcelona CAT-ARG 2018"]
[Site "Barcelona"]
[Date "2018.10.14"]
[Round "13"]
[White "Guerra Mendez, Jose Angel"]
[Black "Krysa, Leandro"]
[Result "1-0"]
[ECO "C44"]
[WhiteElo "2534"]
[BlackElo "2503"]
[Annotator "ChessBase"]
[PlyCount "127"]
[EventDate "2018.10.08"]
[EventCountry "ESP"]
[SourceTitle "playchess.com"]
[Source "ChessBase"]
[SourceQuality "1"]
[TimeControl "900+5"]

1. e4 {[%emt 0:00:00]} e5 {[%emt 0:00:00]} 2. Nf3 {[%emt 0:00:00]} Nc6 {[%emt 0:00:00]} 3. d4 {[%emt 0:00:02]} exd4 {[%emt 0:00:00]} 4. Nxd4 {[%emt 0:00:01]} Nf6 {[%emt 0:00:01]} 5. Nc3 {[%emt 0:00:02]} Bc5 {[%emt 0:00:03]} 6. Nxc6 {[%emt 0:00:08]} bxc6 {[%emt 0:00:01]} 7. Bd3 {[%emt 0:00:05]} O-O {[%emt 0:00:04]} 8. O-O {[%emt 0:00:04]} Re8 {[%emt 0:00:02]} 9. h3 {[%emt 0:00:23]} Rb8 {[%emt 0:00:27]} 10. Na4 {[%emt 0:01:11]} Bf8 {[%emt 0:00:08]} 11. Qf3 {[%emt 0:01:27]} d5 {[%emt 0:01:10]} 12. exd5 {[%emt 0:00:03]} cxd5 {[%emt 0:00:01]} 13. Bg5 {[%emt 0:00:14]} Bd7 {[%emt 0:01:33]} 14. Nc3 {[%emt 0:01:04]} c6 {[%emt 0:01:14]} 15. b3 {[%emt 0:00:01]} h6 {[%emt 0:00:01]} 16. Bxf6 {[%emt 0:01:29]} Qxf6 {[%emt 0:00:01]} 17. Qxf6 {[%emt 0:00:01]} gxf6 {[%emt 0:00:02]} 18. Ne2 {[%emt 0:00:02]} Re5 {[%emt 0:00:34]} 19. Rfe1 {[%emt 0:02:15]} Rbe8 {[%emt 0:01:39]} 20. Kf1 {[%emt 0:00:01]} Ba3 {[%emt 0:01:28]} 21. Rad1 {[%emt 0:00:36]} Kg7 {[%emt 0:01:40]} 22. c3 {[%emt 0:00:46]} a5 {[%emt 0:00:00]} 23. f4 {[%emt 0:00:56]} Re3 {[%emt 0:02:00]} 24. Nd4 {[%emt 0:00:05]} Bc5 {[%emt 0:01:13]} 25. Rxe3 {[%emt 0:01:08]} Rxe3 {[%emt 0:00:01]} 26. Kf2 {[%emt 0:00:01]} Re8 {[%emt 0:00:08]} 27. Re1 {[%emt 0:00:17]} Rb8 {[%emt 0:00:17]} 28. Kf3 {[%emt 0:00:41]} a4 {[%emt 0:00:45]} 29. bxa4 {[%emt 0:00:26]} Rb2 {[%emt 0:01:49]} 30. Re2 {[%emt 0:00:00]} Rb7 {[%emt 0:00:01]} 31. Nf5+ {[%emt 0:02:16]} Bxf5 {[%emt 0:00:17]} 32. Bxf5 {[%emt 0:00:01]} Ra7 {[%emt 0:00:11]} 33. Bc2 {[%emt 0:00:02]} Bb6 {[%emt 0:00:07]} 34. Bb3 {[%emt 0:00:28]} Ba5 {[%emt 0:00:04]} 35. c4 {[%emt 0:00:24]} d4 {[%emt 0:00:26]} 36. Ke4 {[%emt 0:00:01]} Re7+ {[%emt 0:00:07]} 37. Kd3 {[%emt 0:00:00]} Rxe2 38. Kxe2 {[%emt 0:00:01]} c5 {[%emt 0:00:08]} 39. Bc2 {[%emt 0:00:02]} Kf8 {[%emt 0:00:06]} 40. Kf3 {[%emt 0:00:01]} Ke7 {[%emt 0:00:06]} 41. Kg4 {[%emt 0:00:43]} Kf8 {[%emt 0:00:01]} 42. Kf5 {[%emt 0:00:03]} Ke7 {[%emt 0:00:01]} 43. Kg4 {[%emt 0:00:13]} Kf8 {[%emt 0:00:01]} 44. Bd3 {[%emt 0:00:07]} Bb4 {[%emt 0:00:03]} 45. Kf5 {[%emt 0:00:24]} Ke7 {[%emt 0:00:02]} 46. g4 {[%emt 0:00:03]} Be1 {[%emt 0:00:09]} 47. Be2 {[%emt 0:00:04]} Ba5 {[%emt 0:00:25]} 48. h4 {[%emt 0:00:02]} Bd2 {[%emt 0:00:07]} 49. h5 Bc3 {[%emt 0:00:13]} 50. g5 {[%emt 0:00:15]} fxg5 {[%emt 0:00:03]} 51. fxg5 {[%emt 0:00:01]} hxg5 {[%emt 0:00:05]} 52. Kxg5 {[%emt 0:00:01]} Bd2+ {[%emt 0:00:06]} 53. Kf5 {[%emt 0:00:07]} Kf8 {[%emt 0:00:07]} 54. Ke5 {[%emt 0:00:21]} Bc3 {[%emt 0:00:01]} 55. Kd5 {[%emt 0:00:01]} f5 {[%emt 0:00:00]} 56. Kxc5 {[%emt 0:00:02]} f4 {[%emt 0:00:01]} 57. Kb5 {[%emt 0:00:11]} Ke7 {[%emt 0:00:12]} 58. a5 {[%emt 0:00:04]} Kd6 {[%emt 0:00:06]} 59. a6 {[%emt 0:00:11]} Kc7 {[%emt 0:00:01]} 60. Bd3 {[%emt 0:00:03]} f3 {[%emt 0:00:14]} 61. a7 {[%emt 0:00:12]} Kb7 {[%emt 0:00:06]} 62. h6 {[%emt 0:00:02]} f2 {[%emt 0:00:00]} 63. h7 {[%emt 0:00:03]} f1=Q {[%emt 0:00:06]} 64. a8=Q+ {[%emt 0:00:08]} 1-0

[Event "Ciutat Barcelona CAT-ARG 2018"]
[Site "Barcelona"]
[Date "2018.10.14"]
[Round "13"]
[White "Alonso Rosell, Alvar"]
[Black "Peralta, Fernando"]
[Result "1/2-1/2"]
[ECO "E16"]
[WhiteElo "2526"]
[BlackElo "2582"]
[Annotator "ChessBase"]
[PlyCount "87"]
[EventDate "2018.10.08"]
[EventCountry "ESP"]
[SourceTitle "playchess.com"]
[Source "ChessBase"]
[SourceQuality "1"]
[TimeControl "900+5"]

1. d4 {[%emt 0:00:00]} Nf6 {[%emt 0:00:00]} 2. c4 {[%emt 0:00:00]} e6 {[%emt 0:00:00]} 3. Nf3 {[%emt 0:00:01]} b6 {[%emt 0:00:12]} 4. g3 {[%emt 0:00:02]} Bb7 {[%emt 0:00:01]} 5. Bg2 {[%emt 0:00:02]} Bb4+ {[%emt 0:00:01]} 6. Bd2 {[%emt 0:00:04]} a5 {[%emt 0:00:01]} 7. O-O {[%emt 0:00:02]} O-O {[%emt 0:00:03]} 8. Bf4 {[%emt 0:00:05]} Be7 {[%emt 0:00:04]} 9. Nc3 {[%emt 0:00:09]} Ne4 {[%emt 0:00:04]} 10. Nb5 {[%emt 0:00:01]} Na6 {[%emt 0:00:08]} 11. h4 {[%emt 0:00:02]} c6 {[%emt 0:01:13]} 12. Nc3 {[%emt 0:00:08]} Nxc3 {[%emt 0:00:07]} 13. bxc3 {[%emt 0:00:01]} d5 {[%emt 0:00:58]} 14. Rb1 {[%emt 0:00:12]} Nb8 {[%emt 0:00:55]} 15. c5 {[%emt 0:02:42]} b5 {[%emt 0:00:28]} 16. a4 {[%emt 0:01:01]} Ba6 {[%emt 0:00:23]} 17. Ne5 {[%emt 0:00:17]} Qc8 {[%emt 0:00:46]} 18. axb5 {[%emt 0:01:17]} cxb5 {[%emt 0:06:41]} 19. e4 {[%emt 0:00:02]} dxe4 {[%emt 0:00:34]} 20. Bxe4 {[%emt 0:00:17]} Ra7 {[%emt 0:00:23]} 21. Re1 {[%emt 0:00:46]} a4 {[%emt 0:00:29]} 22. c4 {[%emt 0:00:40]} a3 {[%emt 0:00:43]} 23. Qb3 {[%emt 0:02:20]} bxc4 {[%emt 0:00:52]} 24. Qxa3 {[%emt 0:00:08]} Bf6 {[%emt 0:01:02]} 25. Nxc4 {[%emt 0:03:53]} Nc6 {[%emt 0:00:21]} 26. Nd6 {[%emt 0:00:07]} Qd7 {[%emt 0:00:16]} 27. Rb6 {[%emt 0:01:31]} Bb5 {[%emt 0:00:11]} 28. Qc1 {[%emt 0:00:57]} Ba4 {[%emt 0:00:12]} 29. d5 {[%emt 0:00:05]} exd5 {[%emt 0:00:03]} 30. Bxd5 {[%emt 0:00:02]} Nd4 {[%emt 0:00:05]} 31. Qc4 {[%emt 0:00:14]} Bc6 {[%emt 0:00:12]} 32. Bxc6 {[%emt 0:00:18]} Nxc6 {[%emt 0:00:01]} 33. Bg5 {[%emt 0:00:08]} Ne5 {[%emt 0:00:01]} 34. Qd5 {[%emt 0:00:02]} Qg4 35. Rxe5 {[%emt 0:00:11]} Ra1+ {[%emt 0:00:16]} 36. Kg2 {[%emt 0:00:02]} Bxe5 {[%emt 0:00:07]} 37. Rb7 {[%emt 0:00:10]} Bxd6 {[%emt 0:00:05]} 38. cxd6 {[%emt 0:00:01]} Rd1 {[%emt 0:00:03]} 39. Qf3 {[%emt 0:00:04]} Qxf3+ {[%emt 0:00:03]} 40. Kxf3 {[%emt 0:00:02]} Rxd6 {[%emt 0:00:06]} 41. Be7 {[%emt 0:00:01]} Rd3+ {[%emt 0:00:04]} 42. Ke2 {[%emt 0:00:03]} Rdd8 {[%emt 0:00:04]} 43. Bxd8 {[%emt 0:00:02]} Rxd8 {[%emt 0:00:01]} 44. Ra7 {[%emt 0:00:02]} 1/2-1/2

[Event "Ciutat Barcelona CAT-ARG 2018"]
[Site "Barcelona"]
[Date "2018.10.14"]
[Round "13"]
[White "Asis Gargatagli, Hipolito"]
[Black "Mareco, Sandro"]
[Result "1/2-1/2"]
[ECO "B40"]
[WhiteElo "2526"]
[BlackElo "2653"]
[Annotator "RC"]
[PlyCount "56"]
[EventDate "2018.10.08"]
[EventCountry "ESP"]
[SourceTitle "playchess.com"]
[Source "ChessBase"]
[SourceQuality "1"]
[TimeControl "900+5"]

1. e4 {[%emt 0:00:00]} c5 {[%emt 0:00:00]} 2. Nf3 {[%emt 0:00:00]} e6 {[%emt 0:00:00]} 3. b3 {[%emt 0:00:04]} d6 {[%emt 0:00:00]} 4. Bd3 {[%emt 0:00:04]} Nf6 {[%emt 0:00:12]} 5. O-O {[%emt 0:00:04]} Nc6 {[%emt 0:00:12]} 6. Re1 {[%emt 0:00:04]} Be7 {[%emt 0:00:10]} 7. c3 {[%emt 0:00:05]} O-O {[%emt 0:00:09]} 8. Bc2 {[%emt 0:00:12]} b6 {[%emt 0:00:22]} 9. a3 {[%emt 0:00:05]} e5 {[%emt 0:00:55]} 10. b4 {[%emt 0:00:09]} a6 {[%emt 0:00:15]} 11. h3 {[%emt 0:00:30]} h6 {[%emt 0:00:53]} 12. d4 exd4 {[%emt 0:01:18]} 13. cxd4 {[%emt 0:00:16]} d5 14. exd5 {[%emt 0:01:54]} Nxd5 {[%emt 0:00:23]} 15. Qd3 {[%emt 0:00:22]} Nf6 {[%emt 0:00:11]} 16. Nc3 Nxd4 17. Nxd4 {[%emt 0:01:31]} cxd4 {[%emt 0:07:05]} 18. Ne4 g6 {[%emt 0:01:01]} 19. Bxh6 {[%emt 0:01:18]} Re8 20. Nxf6+ {[%emt 0:04:19]} Bxf6 {[%emt 0:00:02]} 21. Rxe8+ {[%emt 0:00:02]} Qxe8 {[%emt 0:00:01]} 22. Qf3 {[%emt 0:00:03]} Bf5 {[%emt 0:00:01]} 23. Bxf5 {[%emt 0:00:04]} gxf5 {[%emt 0:00:01]} 24. Qg3+ {[%emt 0:00:18]} Kh7 {[%emt 0:00:12]} 25. Bg5 {[%emt 0:00:02]} Bg7 {[%emt 0:00:10]} 26. Qh4+ {[%emt 0:00:02]} Kg6 27. Qg3 {[%emt 0:02:13]} Kh7 {[%emt 0:00:33]} 28. Qh4+ {[%emt 0:00:12]} Kg8 1/2-1/2

[Event "Ciutat Barcelona CAT-ARG 2018"]
[Site "Barcelona"]
[Date "2018.10.14"]
[Round "14"]
[White "Peralta, Fernando"]
[Black "Diaz Camallonga, Carles"]
[Result "1-0"]
[ECO "D45"]
[WhiteElo "2582"]
[BlackElo "2444"]
[Annotator "RC"]
[PlyCount "47"]
[EventDate "2018.10.08"]
[EventCountry "ESP"]
[SourceTitle "playchess.com"]
[Source "ChessBase"]
[SourceQuality "1"]
[TimeControl "900+5"]

1. d4 {[%emt 0:00:00]} d5 {[%emt 0:00:00]} 2. c4 {[%emt 0:00:00]} c6 {[%emt 0:00:00]} 3. Nf3 {[%emt 0:00:03]} Nf6 {[%emt 0:00:00]} 4. Nc3 {[%emt 0:00:01]} e6 {[%emt 0:00:01]} 5. e3 {[%emt 0:00:02]} a6 {[%emt 0:00:01]} 6. b3 {[%emt 0:00:11]} Bb4 {[%emt 0:00:07]} 7. Bd2 {[%emt 0:00:01]} Nbd7 {[%emt 0:00:10]} 8. Bd3 {[%emt 0:00:03]} O-O {[%emt 0:00:04]} 9. O-O {[%emt 0:00:03]} Bd6 {[%emt 0:00:02]} 10. Re1 {[%emt 0:00:52]} e5 {[%emt 0:00:49]} 11. cxd5 {[%emt 0:00:07]} cxd5 {[%emt 0:00:02]} 12. e4 {[%emt 0:00:16]} exd4 {[%emt 0:05:18]} 13. Nxd5 {[%emt 0:00:04]} Nxd5 {[%emt 0:00:02]} 14. exd5 {[%emt 0:00:02]} h6 {[%emt 0:00:33]} 15. Nxd4 {[%emt 0:00:44]} Nb6 {[%emt 0:01:18]} 16. Qh5 {[%emt 0:02:55]} Qf6 {[%emt 0:01:37]} 17. Nf3 {[%emt 0:01:44]} Bd7 {[%emt 0:00:29]} 18. Be3 {[%emt 0:00:09]} Nc8 {[%emt 0:00:11]} 19. Bd4 {[%emt 0:00:35]} Qf4 {[%emt 0:01:06]} 20. h3 {[%emt 0:02:48]} Ne7 {[%emt 0:01:07]} 21. Re4 {[%emt 0:00:23]} Qf5 {[%emt 0:03:17]} 22. Rg4 {[%emt 0:00:07]} Qxh5 {[%emt 0:00:03]} 23. Rxg7+ {[%emt 0:00:03]} Kh8 {[%emt 0:00:01]} 24. Rh7+ 1-0